Cogmind - Beta 9 @@@ ROGUE MODE // 2019.10.27 @ 20:15:42 Player: Qupu Result: Destroyed by Y-64 Sentinel with KE Penetrator Performance ------------- Evolutions (5) 2500 Regions Visited (8) 1600 Robots Destroyed (1) 5 Value Destroyed (6) 6 Prototype IDs (4) 80 Alien Tech Used (0) 0 Bonus (0) 0 TOTAL SCORE: 4191 Bonus ------- None Cogmind --------- Core Integrity 0/1000 Matter 265/300 Energy 98/100 System Corruption 5% Temperature Cool (9) Location -5/Factory Parts ------- Power (1) Propulsion (7) Utility (7) Advanced Visual Processing Unit Weapon (2) Inventory (4) Improved Sensor Array Improved Transmission Jammer Improved Light Armor Plating Heavy Pick Peak State ------------ Power (None) Propulsion Heavy Treads Armored Leg Armored Huge Wheel Improved VTOL Module Xenon Bombardment Thruster Utility Advanced Visual Processing Unit Enhanced Optical Array Transmission Jammer Improved Utility Shielding Hacking Suite Weapon (None) Inventory Improved Sensor Array Improved Transmission Jammer Improved Light Armor Plating Improved Light Armor Plating [Rating: 50] Favorites ----------- Power Micro Nuclear Core Engine Ion Engine Power Core Micro Nuclear Core Propulsion Medium Treads Treads Medium Treads Leg Aluminum Leg Wheel Armored Huge Wheel Hover Unit Improved Gravmag System Flight Unit Improved VTOL Module Utility Advanced Visual Processing Unit Device Transmission Jammer Storage Small Storage Unit Processor Advanced Visual Processing Unit Hackware System Shield Protection Improved Utility Shielding Weapon Heavy Pick Energy Gun Small Laser Piercing Weapon Heavy Pick Build | -11 -10 -9 -9 -8 -7 -6 -6 -5 ------- Run | Scr Mat Mat Min Mat Fac Fac Ext Fac Slots Evolved 10 | . . 2 . 2 2 2 . 2 Power . | . . . . . . . . . Propulsion 5 | . . 1 . 1 1 1 . 1 Utility 5 | . . 1 . 1 1 1 . 1 Weapon . | . . . . . . . . . Parts Attached 62 | 2 5 3 3 16 8 14 . 11 Power 3 | . . . . . 1 2 . . Engine 1 | . . . . . . 1 . . Core 2 | . . . . . 1 1 . . Reactor . | . . . . . . . . . Propulsion 40 | 2 4 2 3 11 3 7 . 8 Treads 20 | 2 2 . 2 7 . 5 . 2 Leg 7 | . . 1 1 3 . 1 . 1 Wheel 1 | . . . . . . . . 1 Hover 3 | . . . . 1 1 1 . . Flight 9 | . 2 1 . . 2 . . 4 Utility 18 | . 1 1 . 5 4 5 . 2 Device 9 | . 1 1 . 1 1 3 . 2 Storage 1 | . . . . . 1 . . . Processor 3 | . . . . 2 1 . . . Hackware 2 | . . . . 1 . 1 . . Protection 3 | . . . . 1 1 1 . . Artifact . | . . . . . . . . . Weapon 1 | . . . . . . . . 1 Energy Gun . | . . . . . . . . . Energy Cannon . | . . . . . . . . . Ballistic Gun . | . . . . . . . . . Ballistic Cannon . | . . . . . . . . . Launcher . | . . . . . . . . . Special Weapon . | . . . . . . . . . Impact Weapon . | . . . . . . . . . Slashing Weapon . | . . . . . . . . . Piercing Weapon 1 | . . . . . . . . 1 Special Melee Weapon . | . . . . . . . . . Unidentified Prototypes 2 | . . . . . 1 . . 1 Parts Lost 33 | . 1 1 . 3 . 10 1 17 Power 1 | . . . . . . 1 . . Propulsion 23 | . 1 1 . 2 . 6 1 12 Utility 8 | . . . . 1 . 3 . 4 Weapon 1 | . . . . . . . . 1 Highest Loss Streak 6 | . 1 1 . 2 . 6 1 6 Average Slot Usage (%) 67 | . 28 44 55 58 79 78 66 46 Core 2 | . . . . . 3 4 . . Treads 19 | . 24 21 12 18 23 23 13 6 Leg 3 | . . 11 20 13 . . 6 4 Flight 8 | . 4 . . . 13 11 6 4 Device 5 | . . 11 22 9 1 8 6 5 Processor 9 | . . . . . 11 13 13 9 Hackware 6 | . . . . 9 7 8 6 4 Protection 7 | . . . . 5 13 4 6 5 Naked Turns . | . . . . . . . . . Heaviest Build 14 | . 1 2 2 3 14 10 3 6 Greatest Support 20 | 3 4 3 3 3 10 10 3 20 Greatest Overweight (x) 1 | . . . . . 1 . . 1 Average Overweight (x) . | . . . . . . . . . Largest Inventory Capacity 6 | 6 4 4 4 4 6 4 4 4 Average Capacity 4 | 4 4 4 4 4 4 4 4 4 Most Carried 6 | 6 4 4 4 4 6 4 2 4 Average Carried 3 | 3 3 3 3 3 4 3 2 3 Final Capacity 4 | . . . . . . . . 4 Final Carried 4 | . . . . . . . . 4 Class Distribution -------------------- 84% | Mutant 9% | Hacker-Mutant 6% | Infiltrator-Mutant Dominant Class ---------------- Mutant | -10/Materials Mutant | -9/Materials Infiltrator-Mutant | -9/Mines Infiltrator-Mutant | -8/Materials Mutant | -7/Factory Mutant | -6/Factory Mutant | -6/Extension Mutant | -5/Factory Resources | -11 -10 -9 -9 -8 -7 -6 -6 -5 ----------- Run | Scr Mat Mat Min Mat Fac Fac Ext Fac Matter Collected 522 | 200 . . 54 . 200 4 . 64 Remotely . | . . . . . . . . . Salvage Created 95 | 95 . . . . . . . . Parts 1 | 1 . . . . . . . . Haulers Intercepted . | . . . . . . . . . Recyclers Shooed 2 | 1 . . . . . . . 1 Parts Field Recycled . | . . . . . . . . . Retrieved Matter . | . . . . . . . . . Parts Self-Destructed . | . . . . . . . . . Prevented . | . . . . . . . . . Kills | -11 -10 -9 -9 -8 -7 -6 -6 -5 ------- Run | Scr Mat Mat Min Mat Fac Fac Ext Fac Combat Hostiles Destroyed . | . . . . . . . . . Classes Destroyed 1 | 1 . . . . . . . . Recycler 1 | 1 . . . . . . . . Best Kill Streak 1 | 1 . . . . . . . . Combat Bots Only . | . . . . . . . . . Max Kills in Single Turn 1 | 1 . . . . . . . . Gunslinging . | . . . . . . . . . Exploded . | . . . . . . . . . Melee . | . . . . . . . . . Uniques/NPCs Destroyed . | . . . . . . . . . Combat | -11 -10 -9 -9 -8 -7 -6 -6 -5 -------- Run | Scr Mat Mat Min Mat Fac Fac Ext Fac Damage Taken 6663 | 15 282 145 97 961 43 1352 422 3346 Core 1717 | 12 127 37 40 139 20 198 126 1018 Absorbed by Shields . | . . . . . . . . . Core Remaining (%) 75 | 95 44 . 80 74 97 . 61 . Volleys Fired . | . . . . . . . . . Largest . | . . . . . . . . . Hottest . | . . . . . . . . . Shots Fired . | . . . . . . . . . Gun . | . . . . . . . . . Cannon . | . . . . . . . . . Launcher . | . . . . . . . . . Special . | . . . . . . . . . Kinetic . | . . . . . . . . . Thermal . | . . . . . . . . . Explosive . | . . . . . . . . . Electromagnetic . | . . . . . . . . . Robot Hit Streak . | . . . . . . . . . Robot Miss Streak . | . . . . . . . . . Penetration Max . | . . . . . . . . . Secondary Targets . | . . . . . . . . . Shots Hit Robots . | . . . . . . . . . Core Hits 15 | 5 3 . . . . . . 7 Critical Hits . | . . . . . . . . . Critical Kills . | . . . . . . . . . Critical Parts Destroyed . | . . . . . . . . . Melee Attacks 4 | . . . . . . . . 4 Impact . | . . . . . . . . . Slashing . | . . . . . . . . . Piercing 4 | . . . . . . . . 4 Sneak Attacks . | . . . . . . . . . Combat Hostiles . | . . . . . . . . . Follow-up Attacks . | . . . . . . . . . Damage Inflicted 103 | 21 12 5 . 6 . 3 . 56 Guns . | . . . . . . . . . Cannons . | . . . . . . . . . Explosions . | . . . . . . . . . Melee . | . . . . . . . . . Ramming 103 | 21 12 5 . 6 . 3 . 56 Kinetic . | . . . . . . . . . Thermal . | . . . . . . . . . Explosive . | . . . . . . . . . Electromagnetic . | . . . . . . . . . Impact . | . . . . . . . . . Slashing . | . . . . . . . . . Piercing . | . . . . . . . . . Highest Corruption 5 | . . . . . . 1 1 5 Average Corruption 1 | . . . . . . 1 1 1 Corruption Purged . | . . . . . . . . . Effects 2 | . . . . . . . . 2 Message Errors 1 | . . . . . . . . 1 Data Loss (minor) 1 | . . . . . . . . 1 Overload Shots . | . . . . . . . . . Overflow Damage . | . . . . . . . . . Projectiles . | . . . . . . . . . Explosions . | . . . . . . . . . Melee . | . . . . . . . . . Knockbacks . | . . . . . . . . . Impact . | . . . . . . . . . Kinetic . | . . . . . . . . . Secondary . | . . . . . . . . . Self-Inflicted Damage 43 | 8 5 2 . 3 . 1 . 24 Shots . | . . . . . . . . . Rammed 28 | 7 3 1 . 1 . 3 . 13 Targets Rammed 28 | 7 3 1 . 1 . 3 . 13 Kicked . | . . . . . . . . . Crushed . | . . . . . . . . . Highest Temperature . | . . . . . . . . . Average Temperature . | . . . . . . . . . Received Heat Transfer 1071 | . . 63 30 108 . 252 60 558 Siege Activations . | . . . . . . . . . Robots Corrupted . | . . . . . . . . . Combat Hostiles . | . . . . . . . . . Parts Fried . | . . . . . . . . . Impact Corruptions . | . . . . . . . . . Robots Melted . | . . . . . . . . . Combat Hostiles . | . . . . . . . . . Parts Melted . | . . . . . . . . . Heat Transferred . | . . . . . . . . . Parts Sabotaged . | . . . . . . . . . Parts Stolen . | . . . . . . . . . Parts Stripped . | . . . . . . . . . Power Chain Reactions . | . . . . . . . . . Missiles Intercepted . | . . . . . . . . . Alert | -11 -10 -9 -9 -8 -7 -6 -6 -5 ------- Run | Scr Mat Mat Min Mat Fac Fac Ext Fac Peak Influence 85 | 5 53 85 43 65 44 40 36 32 Average Influence 25 | 1 29 48 30 37 27 24 10 9 Maximum Alert Level . | . . . . . . . . . Low Security (%) 100 | . . . . . . . . . Level 1 . | . . . . . . . . . Level 2 . | . . . . . . . . . Level 3 . | . . . . . . . . . Level 4 . | . . . . . . . . . Level 5 . | . . . . . . . . . High Security . | . . . . . . . . . Max Security . | . . . . . . . . . Squads Dispatched 15 | . 1 2 . 1 1 3 . 7 Investigation 8 | . . 2 . . 1 1 . 4 Extermination 2 | . . . . . . 1 . 1 Reinforcement 5 | . 1 . . 1 . 1 . 2 Assault . | . . . . . . . . . Garrison . | . . . . . . . . . Intercept . | . . . . . . . . . Construction Impeded 1 | . . . . . . . . 1 Haulers Reinforced . | . . . . . . . . . Stealth | -11 -10 -9 -9 -8 -7 -6 -6 -5 --------- Run | Scr Mat Mat Min Mat Fac Fac Ext Fac Distress Signals 4 | . 2 . . 1 1 . . . Communications Jammed 11 | . . . . . . . . 11 Distress Signals 11 | . . . . . . . . 11 Times Spotted 111 | . 13 7 4 18 4 17 6 42 Peak Tracking Total 18 | . 8 6 3 10 3 10 6 18 Tactical Retreats 17 | . 2 1 1 2 1 3 . 7 Traps | -11 -10 -9 -9 -8 -7 -6 -6 -5 ------- Run | Scr Mat Mat Min Mat Fac Fac Ext Fac Traps Triggered 6 | . . 1 . 2 . 3 . . Indirectly . | . . . . . . . . . Trap Hack Attempts . | . . . . . . . . . Triggered . | . . . . . . . . . Disarmed . | . . . . . . . . . Reprogrammed . | . . . . . . . . . Reused . | . . . . . . . . . Traps Extracted . | . . . . . . . . . Installed . | . . . . . . . . . Triggered . | . . . . . . . . . Machines | -11 -10 -9 -9 -8 -7 -6 -6 -5 ---------- Run | Scr Mat Mat Min Mat Fac Fac Ext Fac Machines Disabled . | . . . . . . . . . Max in Single Turn . | . . . . . . . . . Garrison Access 1 | . . . . 1 . . . . Machines Sabotaged . | . . . . . . . . . Garrisons Compromised . | . . . . . . . . . Overloaded Fab Kills . | . . . . . . . . . Fab Network Shutdowns . | . . . . . . . . . Hacking | -11 -10 -9 -9 -8 -7 -6 -6 -5 --------- Run | Scr Mat Mat Min Mat Fac Fac Ext Fac Machines Accessed 18 | . . 1 . 3 3 6 1 4 Terminals 15 | . . 1 . 2 3 5 1 3 Fabricators . | . . . . . . . . . Repair Stations . | . . . . . . . . . Recycling Units . | . . . . . . . . . Scanalyzers 1 | . . . . . . 1 . . Garrison Access 2 | . . . . 1 . . . 1 Total Hacks 72 | . . 5 . 9 18 24 1 15 Successful 44 | . . 5 . 5 14 15 1 4 Failed 28 | . . . . 4 4 9 . 11 Catastrophic 6 | . . . . 1 1 3 . 1 Database Lockouts . | . . . . . . . . . Manual 12 | . . . . 1 3 5 . 3 Terminals 62 | . . 5 . 6 18 21 1 11 Fabricators . | . . . . . . . . . Repair Stations . | . . . . . . . . . Recycling Units . | . . . . . . . . . Scanalyzers 3 | . . . . . . 3 . . Garrison Access 7 | . . . . 3 . . . 4 Terminal Hacks 39 | . . 5 . 4 14 11 1 4 Record 15 | . . 1 . 1 9 4 . . Part Schematic 1 | . . . . . 1 . . . Prototype ID Bank 1 | . . . . 1 . . . . Open Door 1 | . . . . . . . 1 . Alert Level 7 | . . 1 . 1 . 5 . . Unreport Threat 4 | . . . . 1 . . . 3 Locate Traps 2 | . . . . . 1 1 . . Dispatch Records 1 | . . . . . 1 . . . Surveillance Status 1 | . . . . . 1 . . . Recall Investigation 3 | . . 1 . . . 1 . 1 Recall Reinforcements 1 | . . 1 . . . . . . Hauler Manifests 1 | . . . . . 1 . . . Zone Layout 1 | . . 1 . . . . . . Fabricator Hacks . | . . . . . . . . . Repair Station Hacks . | . . . . . . . . . Recycling Unit Hacks . | . . . . . . . . . Scanalyzer 2 | . . . . . . 2 . . Insert Component 1 | . . . . . . 1 . . Analyze 1 | . . . . . . 1 . . Garrison Access Hacks 1 | . . . . 1 . . . . Seal Access 1 | . . . . 1 . . . . Unauthorized Hacks 6 | . . . . . . 5 . 1 Terminals 2 | . . . . . . 2 . . Botnet 1 | . . . . . . 1 . . Operators 1 | . . . . . . 1 . . Fabricators . | . . . . . . . . . Repair Stations . | . . . . . . . . . Recycling Units . | . . . . . . . . . Scanalyzers . | . . . . . . . . . Garrison Access . | . . . . . . . . . Data Cores Recovered . | . . . . . . . . . Used . | . . . . . . . . . Hacking Detections 15 | . . 1 . 2 3 5 . 4 Full Trace Events 6 | . . 1 . . 1 . . 4 Feedback Events . | . . . . . . . . . Feedback Blocked . | . . . . . . . . . Robot Schematics Acquired . | . . . . . . . . . Robots Built . | . . . . . . . . . Matter . | . . . . . . . . . Time . | . . . . . . . . . Total Robot Build Rating . | . . . . . . . . . Part Schematics Acquired 2 | . . . . . 1 1 . . Parts Built . | . . . . . . . . . Matter . | . . . . . . . . . Time . | . . . . . . . . . Total Part Build Rating . | . . . . . . . . . Parts Repaired . | . . . . . . . . . Time . | . . . . . . . . . Parts Recycled . | . . . . . . . . . Recycled Matter . | . . . . . . . . . Retrieved Matter . | . . . . . . . . . Retrieved Components . | . . . . . . . . . Parts Scanalyzed 1 | . . . . . . 1 . . Part Schematics Acquired 1 | . . . . . . 1 . . Parts Damaged . | . . . . . . . . . Bothacking | -11 -10 -9 -9 -8 -7 -6 -6 -5 ------------ Run | Scr Mat Mat Min Mat Fac Fac Ext Fac Used RIF Installer . | . . . . . . . . . Robots Hacked . | . . . . . . . . . Non-combat . | . . . . . . . . . Combat . | . . . . . . . . . Robot Hacks Applied . | . . . . . . . . . Relay Couplers Released . | . . . . . . . . . Robots Rewired . | . . . . . . . . . Allies Hacked . | . . . . . . . . . Hacks Repelled . | . . . . . . . . . Allies | -11 -10 -9 -9 -8 -7 -6 -6 -5 -------- Run | Scr Mat Mat Min Mat Fac Fac Ext Fac Total Allies . | . . . . . . . . . Largest Group . | . . . . . . . . . Highest-Rated Group . | . . . . . . . . . Highest-Rated Ally . | . . . . . . . . . Total Orders 1 | . . . . . . . . 1 ROAM 1 | . . . . . . . . 1 Ally Attacks . | . . . . . . . . . Total Damage . | . . . . . . . . . Kills . | . . . . . . . . . Allies Corrupted . | . . . . . . . . . Allies Melted . | . . . . . . . . . Intel | -11 -10 -9 -9 -8 -7 -6 -6 -5 ------- Run | Scr Mat Mat Min Mat Fac Fac Ext Fac Robot Analysis Total . | . . . . . . . . . Derelict Logs Recovered . | . . . . . . . . . Drone Launches 3 | . . . . . . . . 3 Drone Recoveries . | . . . . . . . . . Exploration | -11 -10 -9 -9 -8 -7 -6 -6 -5 ------------- Run | Scr Mat Mat Min Mat Fac Fac Ext Fac Turns Passed 2281 | 21 76 112 60 191 728 662 52 379 Spaces Moved 2836 | 12 125 179 110 314 776 651 104 565 Core 1692 | 12 123 179 110 314 97 198 104 555 Treads . | . . . . . . . . . Legs . | . . . . . . . . . Wheels . | . . . . . . . . . Hover . | . . . . . . . . . Flight 1144 | . 2 . . . 679 453 . 10 Fastest Speed 40 | 50 40 50 50 50 50 50 50 50 Average Speed 71 | 50 49 50 50 50 89 93 50 51 Slowest Speed 169 | 50 50 50 50 50 169 114 50 100 Overloaded Moves 1 | . . . . . . . . 1 Propulsion Burnouts . | . . . . . . . . . Robots Hopped 10 | . . . . . 3 5 . 2 Cave-ins Triggered 1 | . . . . . . . . 1 Exploration Rate (%) 27 | 3 43 21 21 49 32 27 27 25 Regions Visited 8 Branch Regions 2 Pre-discovered Areas . | . . . . . . . . . Known Exits Taken . | . . . . . . . . . Unknown Exits Taken 8 | 1 1 1 1 1 1 1 1 . Scrap Searched . | . . . . . . . . . Spaces Dug 4 | . . . . . . . . 4 Terrain Destroyed 4 | . . . . . . . . 4 Melee 4 | . . . . . . . . 4 Projectile . | . . . . . . . . . AOE . | . . . . . . . . . Actions | -11 -10 -9 -9 -8 -7 -6 -6 -5 --------- Run | Scr Mat Mat Min Mat Fac Fac Ext Fac Total 3072 | 29 137 199 114 345 807 697 103 641 Wait 94 | . 1 16 . 1 15 20 . 41 Move 2807 | 11 124 178 109 313 769 640 103 560 Hop 10 | . . . . . 3 5 . 2 Pick Up 32 | 2 1 1 1 6 7 8 . 6 Fast Attach 29 | . 4 1 . 11 2 4 . 7 Attach 22 | . . 1 1 5 4 9 . 2 Detach 2 | . . . . . . 2 . . Swap 11 | 2 1 1 2 . 2 1 . 2 Drop 31 | 7 3 . 1 8 5 5 . 2 Fire . | . . . . . . . . . Melee 4 | . . . . . . . . 4 Ram 28 | 7 3 1 . 1 . 3 . 13 Kick . | . . . . . . . . . Crush . | . . . . . . . . . Escape Stasis 1 | . . . . . . . . 1 Rewire . | . . . . . . . . . Trap . | . . . . . . . . . Miscellaneous 1 | . . . . . . . . 1 Route ------- -11/Scrapyard -10/Materials -9/Materials -9/Mines -8/Materials -7/Factory -6/Factory -6/Extension -5/Factory History --------- Turn | Location | Event 7 | -11/Scrapyard | Discovered new exit (range 3) 22 | -11/Scrapyard | Entered Materials 83 | -10/Materials | Core integrity fell below 50% 87 | -10/Materials | Discovered new exit (range 10) 98 | -10/Materials | Entered another Materials area 98 | -9/Materials | Evolved 2 slots: Propulsion x1, Utility x1 198 | -9/Materials | Discovered new exit (range 7) 210 | -9/Materials | Entered Mines 249 | -9/Mines | Discovered new exit (range 10) 258 | -9/Mines | Joined a pair of Derelicts in attacking an 0b10 outpost 270 | -9/Mines | Entered Materials 270 | -8/Materials | Evolved 2 slots: Propulsion x1, Utility x1 427 | -8/Materials | Discovered new exit (range 16) 461 | -8/Materials | Entered Factory 461 | -7/Factory | Evolved 2 slots: Propulsion x1, Utility x1 637 | -7/Factory | Build established: Mutant 1160 | -7/Factory | Discovered new exit (range 21) 1189 | -7/Factory | Entered another Factory area 1189 | -6/Factory | Evolved 2 slots: Propulsion x1, Utility x1 1756 | -6/Factory | Lost 6 parts (1p3n2u) 1845 | -6/Factory | Discovered new exit (range 13) 1851 | -6/Factory | Entered Extension 1889 | -6/Extension | Spotted B-75 Beast 1893 | -6/Extension | Spotted B-75 Beast 1902 | -6/Extension | Discovered new exit (range 3) 1903 | -6/Extension | Entered Factory 1903 | -5/Factory | Evolved 2 slots: Propulsion x1, Utility x1 1951 | -5/Factory | Crushed by falling debris 2096 | -5/Factory | Lost 3 parts (3n) 2167 | -5/Factory | Core integrity fell below 50% 2176 | -5/Factory | Lost 4 parts (4n) 2264 | -5/Factory | Lost 6 parts (4n2u) 2268 | -5/Factory | Core integrity fell below 20% 2282 | -5/Factory | Destroyed by Y-64 Sentinel with KE Penetrator Last Messages --------------- 02251_ Transmission Jammer permanently disabled. 02252_ ALERT: Construction progress impeded, dispatching reinforcements to local area. 02252_ Penetrated by Slug. 02257_ Slammed into S-27 Virus. 02258_ GQS35A0 7PZK#QNTZ/YA8E/>A 02258_ Slammed into S-27 Virus. 02258_ Destabilizing: Short circuit. 02258_ Hvy. Treads permanently disabled. 02262_ Slug penetrates Wall. 02262_ Drone sends a signal. 02264_ Slug penetrates Wall. 02268_ Door malfunctions. 02272_ Hvy. Treads destroyed. 02275_ System corrupted: Component data lost. 02276_ K-01 Serf cleans the Fusion Modulator. 02280_ Penetrated by Slug. 02280_ Imp. Utility Shielding destroyed. 02281_ Transmission Jammer destroyed. 02282_ Penetrated by Slug. Map ----- +----------------------------------------------------+ | / # | | # # | | ########## # # | | ##????????# #? ! # | | ?##################? # | | ## #????????? # | | # """" ####################? | | # """" # = ?? | | + """" # #? | | # """" # """ """ """ """ #? | | # """" # """ """ """ """ #? | | ## """" # """ """ """ """ #? | | ## # #? | | ############ #? | | #??????????# #? | | ###????????#######/####+####???? | | "############## Ys #??????? | | s s s#??????? | | ! #??????? | | s s#??????? | | ### ########### ######?? | | ##?#+#?????????## #?? | | ?? #?????????# #?? | | #?????????+ """#?? | | #?????????# Y"#?? | | """ #?????????# @"""#?? | | """ #?????????# #?? | | """ #?????????# = #?? | | #?????????# #?? | | ?###+##?????????# " " " " #?? | | ????????????????# " " " " #?? | | ??????????????? " " " " #?? | | ?????????????? " " " " #?? | | ????????????? " " " " #?? | | ????????????? ? "?" " " #?? | | ?????????????????????" " ? #?? | | ???????????????????????" ? #?? | | ???????????????????????" ?? #?? | | ??????????????????????? ?? #?? | | ???????????????????????? ?? #?? | | ???????????????????????????#???? | | ???????????????????????????????? | | ???????????????????????????????? | | ???????????????????????????????? | | ???????????????????????????????? | | ???????????????????????????????? | | ???????????????????????????????? | | ???????????????????????????????? | | ???????????????????????????????? | | ???????????????????????????????? | +----------------------------------------------------+ Best States ------------- Heat Dissipation 40 Energy Generation 18 Energy Capacity 150 Matter Stores 300 Matter Capacity 300 Sight Range 22 Robot Scan Range 20 Terrain Scan Density 10 ECM Strength 1 Jamming Range 8 Power Shielding 66 Utility Shielding 66 Evasion (%) 62 Recoil Reduction 1 Offensive Hacking 10 Defensive Hacking 10 Item Schematics ----------------- Imp. Armor Integrity Analyzer | -7/Factory | Hacked Imp. Transmission Jammer | -6/Factory | Scanalyzed Robot Schematics ------------------ None Fabricated ------------ Nothing Alien Tech Used ----------------- None Achievements -------------- Shopping List True Hacker Challenges ------------ None Game ------ Seed BottomlessFlightFlakker Manual? 0 Play Time 00:45:00 Cumulative 22.7 hours Start 2019.10.27 @ 19:34:19 End 2019.10.27 @ 20:15:42 Sessions 1 Manual Loads 0 Difficulty Rogue Special Mode None Game No. 45 Rogue 45 Adventurer 0 Explorer 0 Win Type - Total 0 Types 0/0/0/0/0/0/0 Lore% 18 Gallery% 38 Achievement% 26 Wizard Run 0 Options --------- ASCII 0 Keyboard 0 Movement Numpad Keybinds 0 Fullscreen 0 Font 12/Terminus Map View 76x50 Tactical HUD 1 Map Filters NONE Filters NONE Steam 1 RUN: 28398bbe-1ebb-41f5-ab24-6c435c84aff7